bitfinex-derivatives/quotes_BTCF0:USTF0_20251109
["timestamp","ask_amount","ask_price","bid_price","bid_amount"]
[1762726009886,0.3654395,104530.0,104520.0,0.5838979]
[1762726011474,0.4033595,104530.0,104520.0,0.5838979]
[1762726014786,0.18097803,104530.0,104520.0,0.5838979]
[1762726015285,0.18097803,104530.0,104520.0,0.7312979]
[1762726015977,0.14305803,104530.0,104520.0,0.7312979]
[1762726016884,0.14305803,104530.0,104520.0,0.72184264]
[1762726020087,0.18259803,104530.0,104520.0,0.3618]
[1762726020287,0.61979067,104530.0,104520.0,0.001]
[1762726020888,0.6669416,104530.0,104520.0,0.001]
[1762726021491,0.6669416,104530.0,104510.0,0.004784]
[1762726021492,0.16491,104520.0,104510.0,0.004784]
[1762726021683,0.60430067,104520.0,104510.0,0.004784]
[1762726021884,0.6514516,104520.0,104510.0,0.004784]
[1762726022391,0.57505896,104520.0,104510.0,0.004784]
[1762726022592,0.57505896,104520.0,104510.0,0.068914]
[1762726022784,0.57705896,104520.0,104510.0,0.004784]
[1762726022982,0.57805896,104520.0,104510.0,0.004784]
[1762726024888,0.21725896,104520.0,104510.0,0.068914]
[1762726025092,0.21725896,104520.0,104510.0,0.130214]
[1762726025487,0.57805896,104520.0,104510.0,0.130214]
[1762726025689,0.80044043,104520.0,104510.0,0.130214]
[1762726026993,0.80044043,104520.0,104510.0,0.277614]
[1762726029397,0.57805896,104520.0,104510.0,0.277614]
[1762726031504,0.57805896,104520.0,104510.0,0.152184]
[1762726031704,0.6544516,104520.0,104510.0,0.152184]
[1762726032903,0.6544516,104520.0,104510.0,0.004784]
[1762726037102,0.6544516,104520.0,104510.0,0.068914]
[1762726038104,0.87674244,104520.0,104510.0,0.004784]
[1762726038303,0.06552,104500.0,104490.0,0.1474]
[1762726038510,0.21160896,104500.0,104490.0,0.27283]
[1762726038697,0.21160896,104500.0,104490.0,0.63363]
[1762726038897,0.21160896,104500.0,104490.0,0.27283]
[1762726039508,0.21660896,104500.0,104490.0,0.27283]
[1762726040196,0.21560896,104500.0,104490.0,0.27283]
[1762726040511,0.4378998,104500.0,104490.0,0.27283]
[1762726041705,0.4388998,104500.0,104490.0,0.27283]
[1762726041907,0.21660896,104500.0,104490.0,0.27283]
[1762726042102,0.21560896,104500.0,104490.0,0.27283]
[1762726042401,0.21860896,104500.0,104490.0,0.27283]
[1762726044307,0.2950016,104500.0,104490.0,0.27283]
[1762726044607,0.6558016,104500.0,104490.0,0.12543]
[1762726044806,0.16491,104490.0,104480.0,0.00478538]
[1762726045005,0.6514516,104490.0,104480.0,0.00478538]
[1762726045909,0.6524516,104490.0,104480.0,0.00478538]
[1762726046408,0.6554516,104490.0,104480.0,0.00478538]
[1762726046799,0.6544516,104490.0,104480.0,0.00478538]
[1762726047003,0.6594516,104490.0,104480.0,0.00478538]
[1762726047704,0.6564516,104490.0,104480.0,0.00478538]
[1762726048007,0.88374244,104490.0,104480.0,0.00478538]
[1762726049110,0.6614516,104490.0,104480.0,0.00478538]
[1762726050412,0.88374244,104490.0,104480.0,0.00478538]
[1762726050917,0.88374244,104490.0,104480.0,0.12820538]
[1762726051212,0.8073498,104490.0,104480.0,0.12820538]
[1762726051613,0.6614516,104490.0,104480.0,0.00478538]
[1762726052313,0.58505896,104490.0,104480.0,0.00478538]
[1762726052518,0.6614516,104490.0,104480.0,0.00478538]
[1762726057120,0.15252,104460.0,104450.0,0.12820675]
[1762726057320,0.51551803,104460.0,104450.0,0.12820675]
[1762726057618,0.57641543,104460.0,104450.0,0.12820675]
[1762726058215,0.65280807,104460.0,104450.0,0.00478675]
[1762726058419,0.65580807,104460.0,104450.0,0.00478675]
[1762726058615,0.65580807,104460.0,104450.0,0.12820675]
[1762726058821,0.21861543,104460.0,104450.0,0.52311675]
[1762726059319,0.21861543,104460.0,104450.0,0.48900675]
[1762726059916,0.18613543,104460.0,104450.0,0.52311675]
[1762726060220,0.21861543,104460.0,104450.0,0.52311675]
[1762726061221,0.06609543,104460.0,104450.0,0.52311675]
[1762726061521,0.12649543,104460.0,104450.0,0.52311675]
[1762726062414,0.0638974,104460.0,104450.0,0.59950939]
[1762726062610,0.06609543,104460.0,104450.0,0.59950939]
[1762726064621,0.0638974,104460.0,104450.0,0.74690939]
[1762726064811,0.00014346,104470.0,104460.0,0.12342]
[1762726065016,0.12238149,104470.0,104460.0,0.56061264]
[1762726066115,0.34725229,104470.0,104460.0,0.56061264]
[1762726066318,0.38073229,104470.0,104460.0,0.12442]
[1762726066517,0.38073229,104470.0,104460.0,0.48522]
[1762726067926,0.38073229,104470.0,104460.0,0.63262]
[1762726068428,0.28861229,104470.0,104460.0,0.63262]
[1762726068818,0.33948229,104470.0,104460.0,0.63262]
[1762726069427,0.37120229,104470.0,104460.0,0.63262]
[1762726078819,0.37120229,104470.0,104460.0,0.71866976]
[1762726080833,0.14933149,104470.0,104460.0,0.71866976]
[1762726081034,0.37182376,104470.0,104460.0,0.71866976]
[1762726081736,0.34010376,104470.0,104460.0,0.71866976]
[1762726081933,0.36990376,104470.0,104460.0,0.71866976]
[1762726083036,0.36990376,104470.0,104460.0,0.63262]
[1762726083332,0.36990376,104470.0,104460.0,0.71093976]
[1762726083635,0.14741149,104470.0,104460.0,0.71093976]
[1762726087846,0.14741149,104470.0,104460.0,0.62489]
[1762726088139,0.14741149,104470.0,104460.0,0.71093976]
[1762726088338,0.14741149,104470.0,104460.0,0.35013976]
[1762726088841,0.14741149,104470.0,104460.0,0.71093976]
[1762726090336,0.42243165,104470.0,104460.0,0.71093976]
[1762726093242,0.64536612,104470.0,104460.0,0.71093976]
[1762726094438,0.37034596,104470.0,104460.0,0.71093976]
[1762726097945,0.14741149,104470.0,104460.0,0.71093976]
[1762726098533,0.14741149,104470.0,104460.0,0.86993976]
[1762726098741,0.14741149,104470.0,104460.0,0.71093976]
[1762726100538,0.00414346,104470.0,104460.0,0.89274192]
[1762726101338,0.00414346,104470.0,104460.0,0.79698952]
[1762726101543,0.00514346,104470.0,104460.0,0.79898952]
[1762726101743,0.00214346,104470.0,104460.0,0.89474192]
[1762726101939,0.00314346,104470.0,104460.0,0.89474192]
[1762726102948,0.00314346,104470.0,104460.0,0.79898952]
[1762726104047,0.22607793,104470.0,104460.0,0.79898952]
[1762726104440,0.22607793,104470.0,104460.0,0.89474192]
[1762726106453,0.22607793,104470.0,104460.0,1.25554192]
[1762726109154,0.00314346,104470.0,104460.0,1.25554192]
[1762726110869,0.00314346,104470.0,104460.0,1.49486192]
[1762726112457,0.10081346,104470.0,104460.0,1.22701]
[1762726112762,0.00314346,104470.0,104460.0,1.25554192]
[1762726112964,0.00314346,104470.0,104460.0,1.49486192]
[1762726113161,0.00314346,104470.0,104460.0,1.25554192]
[1762726113753,0.35235793,104470.0,104460.0,1.07373976]
[1762726113957,0.35235793,104470.0,104460.0,1.15978952]
[1762726114160,0.35455596,104470.0,104460.0,1.15978952]
[1762726115063,0.10301149,104470.0,104460.0,1.15978952]
[1762726115267,0.05488149,104470.0,104460.0,1.15978952]
[1762726115461,0.00534149,104470.0,104460.0,1.25554192]
[1762726115767,0.00534149,104470.0,104460.0,1.49486192]
[1762726116359,0.00534149,104470.0,104460.0,1.25554192]
[1762726116666,0.00314346,104470.0,104460.0,1.25554192]
[1762726117362,0.05268346,104470.0,104460.0,1.25554192]
[1762726117563,0.00314346,104470.0,104460.0,1.15978952]
[1762726118467,0.00314346,104470.0,104460.0,1.25554192]
[1762726119571,0.00314346,104470.0,104460.0,1.15978952]
[1762726120868,0.13162149,104470.0,104460.0,1.15978952]
[1762726126578,0.13162149,104470.0,104460.0,0.98769]
[1762726126874,0.13162149,104470.0,104460.0,0.71293976]
[1762726127875,0.13162149,104470.0,104460.0,0.71193976]
[1762726128275,0.13062149,104470.0,104460.0,0.71193976]
[1762726128475,0.13162149,104470.0,104460.0,0.71193976]
[1762726129969,0.35455596,104470.0,104460.0,0.71193976]
[1762726131676,0.35455596,104470.0,104460.0,0.79798952]
[1762726133071,0.35455596,104470.0,104460.0,1.15878952]
[1762726133382,0.13162149,104470.0,104460.0,1.15878952]
[1762726135176,0.354483,104470.0,104460.0,1.15878952]
[1762726139071,0.354483,104470.0,104460.0,1.25454212]
[1762726140470,0.325873,104470.0,104460.0,1.25454212]
[1762726140676,0.22600497,104470.0,104460.0,1.25454212]
[1762726140973,0.22600497,104470.0,104460.0,1.15889744]
[1762726141382,0.00314346,104470.0,104460.0,1.15889744]
[1762726141582,0.00314346,104470.0,104460.0,1.40139744]
[1762726141773,0.22286151,104480.0,104470.0,0.1549434]
[1762726141973,0.22286151,104480.0,104470.0,0.59219824]
[1762726142379,0.22286151,104480.0,104470.0,0.73959824]
[1762726142683,0.12403346,104490.0,104480.0,0.0592]
[1762726142886,0.12623149,104490.0,104480.0,0.64385484]
[1762726143385,0.00014346,104490.0,104480.0,0.83084398]
[1762726143576,0.04385346,104490.0,104480.0,0.75438914]
[1762726143777,0.08549346,104490.0,104480.0,0.75538914]
[1762726144285,0.04485346,104490.0,104480.0,0.75538914]
[1762726144691,0.04785346,104490.0,104480.0,0.75538914]
[1762726144890,0.27055403,104490.0,104480.0,0.75538914]
[1762726145784,0.22684403,104490.0,104480.0,0.83184398]
[1762726145991,0.22684403,104490.0,104480.0,0.75538914]
[1762726147586,0.22684403,104490.0,104480.0,0.83184398]
[1762726148689,0.00414346,104490.0,104480.0,0.75538914]
[1762726148889,0.00414346,104490.0,104480.0,0.83184398]
[1762726149186,0.00414346,104490.0,104480.0,0.65965484]
[1762726149388,0.11637149,104490.0,104480.0,0.64485484]
[1762726151585,0.11637149,104490.0,104480.0,0.74058914]
[1762726153792,0.11637149,104490.0,104480.0,1.10138914]
[1762726154487,0.11637149,104490.0,104480.0,0.37978914]
[1762726154680,0.11637149,104490.0,104480.0,1.10138914]
[1762726156093,0.11637149,104490.0,104480.0,1.00565484]
[1762726157486,0.11637149,104490.0,104480.0,1.10138914]
[1762726161793,0.09069149,104490.0,104480.0,1.10138914]
[1762726161996,0.31339206,104490.0,104480.0,1.10138914]
[1762726164601,0.09069149,104490.0,104480.0,1.10138914]
[1762726167000,0.09069149,104490.0,104480.0,1.17784398]
[1762726167200,0.00414346,104490.0,104480.0,1.17784398]
[1762726167702,0.00414346,104490.0,104480.0,1.42034398]
[1762726169302,0.00214346,104490.0,104480.0,1.42034398]
[1762726169509,0.00114346,104490.0,104480.0,1.41934398]
[1762726169700,0.00114346,104490.0,104480.0,1.42334398]
[1762726170000,0.00214346,104490.0,104480.0,1.42334398]
[1762726170500,0.00214346,104490.0,104480.0,1.42534398]
[1762726177696,0.10621149,104490.0,104480.0,0.92149]
[1762726177902,0.10621149,104490.0,104480.0,0.99794484]
[1762726189913,0.10621149,104490.0,104480.0,0.92149]
[1762726190096,0.10621149,104490.0,104480.0,0.99794484]
[1762726191311,0.54071117,104490.0,104440.0,0.09287]
[1762726191608,0.00999999,104440.0,104430.0,0.09375]
[1762726191906,0.03969886,104440.0,104430.0,0.69375]
[1762726192108,0.02969887,104440.0,104430.0,0.77020484]
[1762726192413,0.74986427,104440.0,104430.0,0.78510674]
[1762726192610,0.74986427,104440.0,104430.0,0.09375]
[1762726193108,0.75386427,104440.0,104430.0,0.09375]
[1762726193499,0.83031911,104440.0,104430.0,0.09375]
[1762726193697,0.84096156,104440.0,104430.0,0.09375]
[1762726193900,0.76350672,104440.0,104430.0,0.09375]
[1762726194102,0.76750672,104440.0,104430.0,0.09475]
[1762726194910,0.76750672,104440.0,104360.0,0.00479088]
[1762726194911,0.3608,104410.0,104360.0,0.00479088]
[1762726195111,0.08865286,104370.0,104360.0,0.69854088]
[1762726195313,0.01219802,104370.0,104360.0,0.69854088]
[1762726195504,0.00014346,104380.0,104370.0,0.09375]
[1762726195704,0.73394148,104380.0,104370.0,0.69375]
[1762726196018,0.81503574,104380.0,104370.0,0.02853674]
[1762726196206,0.89149058,104380.0,104360.0,0.11439]
[1762726196407,0.3608,104370.0,104360.0,0.11439]
[1762726196613,0.36299803,104370.0,104360.0,0.11439]
[1762726196907,0.37676821,104370.0,104360.0,0.11439]
[1762726197113,0.00999999,104310.0,104280.0,0.00485235]
[1762726197301,0.00999999,104280.0,104270.0,0.00479501]
[1762726197506,0.08865286,104280.0,104270.0,0.00335695]
[1762726197710,0.79561688,104280.0,104270.0,0.0930593]
[1762726198612,0.79761688,104280.0,104270.0,0.0930593]
[1762726199111,0.79861688,104280.0,104270.0,0.0930593]
[1762726199312,0.00999999,104250.0,104240.0,0.11918639]
[1762726199507,0.37299802,104250.0,104240.0,0.11918639]
[1762726199717,0.51648897,104250.0,104240.0,0.11918639]
[1762726199903,0.51648897,104250.0,104240.0,0.15736911]
[1762726200216,0.51648897,104250.0,104240.0,0.85332381]
[1762726200217,0.06505095,104250.0,104240.0,0.85332381]
[1762726200416,0.3618,104280.0,104270.0,0.08485]
[1762726200417,0.3718,104280.0,104270.0,0.08485]
[1762726200617,0.37399803,104280.0,104270.0,0.08485]
[1762726200920,0.07977134,104280.0,104270.0,0.68485]
[1762726201113,0.07977134,104280.0,104270.0,0.77479983]
[1762726201114,0.00133134,104280.0,104270.0,0.77479983]
[1762726201305,0.00133134,104280.0,104270.0,1.01455983]
[1762726201505,0.00133134,104280.0,104270.0,1.11048693]
[1762726201704,0.00133134,104280.0,104270.0,0.77479983]
[1762726201915,0.00533134,104280.0,104270.0,1.11048693]
[1762726202116,0.00533134,104280.0,104270.0,0.87072693]
[1762726202317,0.00633134,104280.0,104270.0,1.23152693]
[1762726202520,0.00633134,104280.0,104270.0,1.3813371]
[1762726202718,0.00533134,104280.0,104270.0,1.47128693]
[1762726202906,0.00633134,104280.0,104270.0,1.47128693]
[1762726203109,0.00633134,104280.0,104270.0,1.23152693]
[1762726203416,0.00633134,104280.0,104270.0,1.47128693]
[1762726203616,0.36094346,104290.0,104270.0,1.47128693]
[1762726203617,0.3569448,104290.0,104280.0,0.11439]
[1762726203811,0.3569448,104290.0,104280.0,0.20433983]
[1762726204013,0.3569448,104290.0,104280.0,0.44405983]
[1762726204222,0.3608,104300.0,104290.0,0.08485]
[1762726204515,0.36299803,104300.0,104290.0,0.08485]
[1762726205527,0.1820586,104290.0,104280.0,0.00414346]
[1762726205823,0.54505663,104290.0,104280.0,0.08899346]
[1762726206923,0.54605663,104290.0,104280.0,0.08499346]
[1762726207519,0.36399803,104290.0,104280.0,0.11453346]
[1762726207910,0.36499803,104290.0,104280.0,0.11653346]
[1762726208122,0.36599803,104290.0,104280.0,0.11753346]
[1762726212521,0.36599803,104290.0,104280.0,0.20748329]
[1762726212720,0.36599803,104290.0,104280.0,0.11753346]
[1762726212929,0.36599803,104290.0,104280.0,0.30340109]
[1762726213230,0.3608,104300.0,104290.0,0.08485]
[1762726213429,0.36299803,104300.0,104290.0,0.51042843]
[1762726213627,0.36299803,104300.0,104290.0,0.27070843]
[1762726213828,0.36299803,104300.0,104290.0,0.51042843]
[1762726214029,0.36299803,104300.0,104290.0,0.27070843]
[1762726214335,0.36094346,104310.0,104300.0,0.11439]
[1762726214526,0.36094346,104310.0,104300.0,0.20433983]
[1762726214527,0.36314149,104310.0,104300.0,0.20433983]
[1762726214825,0.07204,104300.0,104290.0,0.001]
[1762726215033,0.43503803,104300.0,104290.0,0.08585]
[1762726215435,0.52498786,104300.0,104290.0,0.08485]
[1762726215631,0.52498786,104300.0,104290.0,0.08585]
[1762726215632,0.43803803,104300.0,104290.0,0.08585]
[1762726216032,0.44103803,104300.0,104290.0,0.08685]
[1762726216236,0.53393743,104300.0,104290.0,0.08585]
[1762726216428,0.46289743,104300.0,104290.0,0.08785]
[1762726217032,0.00014346,104310.0,104290.0,1.05374983]
[1762726217338,0.00014346,104310.0,104300.0,0.78632923]
[1762726217537,0.00014346,104310.0,104300.0,0.54664923]
[1762726217832,0.00014346,104310.0,104300.0,0.78632923]
[1762726218034,0.02857,104320.0,104310.0,0.0958885]
[1762726218333,0.02857,104320.0,104310.0,0.18583833]
[1762726218544,0.02857,104320.0,104310.0,0.54663833]
[1762726219523,0.02857,104320.0,104310.0,0.45074983]
[1762726219734,0.02857,104320.0,104310.0,0.54664003]
[1762726220136,0.02957,104320.0,104310.0,0.55164003]
[1762726220330,0.06617,104320.0,104310.0,0.4646902]
[1762726220536,0.06836803,104320.0,104310.0,0.55464003]
[1762726221333,0.03057,104320.0,104310.0,0.79428003]
[1762726222133,0.03057,104320.0,104310.0,0.55464003]
[1762726223039,0.03057,104320.0,104310.0,0.79428003]
[1762726223338,0.03057,104320.0,104310.0,0.7043302]
[1762726223542,0.03057,104320.0,104310.0,0.4646902]
[1762726223842,0.002,104320.0,104310.0,0.71374003]
[1762726224038,0.002,104320.0,104310.0,0.95338003]
[1762726224539,0.002,104320.0,104310.0,0.71374003]
[1762726224838,0.002,104320.0,104310.0,0.95338003]
[1762726225040,0.002,104320.0,104310.0,0.71374003]
[1762726225540,0.002,104320.0,104310.0,0.95338003]
[1762726225839,0.002,104320.0,104310.0,0.71374003]
[1762726226026,0.002,104320.0,104310.0,0.95338003]
[1762726226543,0.15581803,104320.0,104310.0,0.76754]
[1762726226734,0.15581803,104320.0,104310.0,0.5279]
[1762726227239,0.15581803,104320.0,104310.0,0.61784983]
[1762726227439,0.15581803,104320.0,104310.0,0.85748983]
[1762726227637,0.09054803,104320.0,104310.0,0.85748983]
[1762726228844,0.09054803,104320.0,104310.0,0.61784983]
[1762726229035,0.04195803,104320.0,104310.0,0.95338013]
[1762726229932,0.04195803,104320.0,104310.0,0.71374013]
[1762726231543,0.13783913,104320.0,104310.0,0.71374013]
[1762726232142,0.03976,104320.0,104310.0,0.71374013]
[1762726232331,0.002,104320.0,104310.0,0.71374013]
[1762726232536,0.002,104320.0,104310.0,0.95338013]
[1762726234034,0.002,104320.0,104310.0,0.71374013]
[1762726234434,0.002,104320.0,104310.0,0.95338013]
[1762726235643,0.00464346,104330.0,104320.0,0.2549811]
[1762726235943,0.00464346,104330.0,104320.0,0.70573093]
[1762726236144,0.00464346,104330.0,104320.0,0.94537093]
[1762726236537,0.00464346,104330.0,104320.0,0.70573093]
[1762726237045,0.00464346,104330.0,104320.0,0.94737093]
[1762726237241,0.00045,104350.0,104320.0,1.04625203]
[1762726237547,0.00045,104350.0,104340.0,0.70571253]
[1762726237844,0.00045,104350.0,104340.0,1.06651253]
[1762726238038,0.00045,104350.0,104340.0,1.30611253]
[1762726238541,0.00045,104350.0,104340.0,1.06651253]
[1762726238741,0.23021266,104360.0,104350.0,0.2549535]
[1762726238942,0.23241069,104360.0,104350.0,0.70570333]
[1762726240138,0.23341069,104360.0,104350.0,0.6157535]
[1762726240435,0.23541069,104360.0,104350.0,0.70670333]
[1762726242934,0.23541069,104360.0,104350.0,0.6167535]
[1762726243134,0.23541069,104360.0,104350.0,0.70670333]
[1762726245547,0.23541069,104360.0,104350.0,0.001]
[1762726247149,0.23541069,104360.0,104350.0,0.54760333]
[1762726247448,0.23541069,104360.0,104350.0,0.45174983]
[1762726247654,0.23541069,104360.0,104350.0,0.3618]
[1762726249046,0.23541069,104360.0,104350.0,0.1601]
[1762726249245,0.23541069,104360.0,104350.0,0.5209]
[1762726250743,0.23541069,104360.0,104350.0,0.6167535]
[1762726252045,0.23541069,104360.0,104350.0,0.5209]
[1762726252646,0.23541069,104360.0,104350.0,0.6167535]
[1762726253157,0.13956149,104360.0,104350.0,0.70670333]
[1762726254357,0.07209346,104360.0,104350.0,1.06750333]
[1762726254757,0.02350346,104360.0,104350.0,1.06750333]
[1762726255454,0.00764346,104360.0,104350.0,1.39701316]
[1762726255651,0.00564346,104360.0,104350.0,1.39601316]
[1762726255851,0.00664346,104360.0,104350.0,1.40201316]
[1762726256060,0.04249346,104360.0,104350.0,1.40201316]
[1762726256252,0.04249346,104360.0,104350.0,1.07650333]
[1762726256453,0.04149346,104360.0,104350.0,1.31006333]
[1762726256752,0.04349346,104360.0,104350.0,1.07850333]
[1762726256959,0.04249346,104360.0,104350.0,1.31406333]
[1762726257159,0.04349346,104360.0,104350.0,1.32106333]
[1762726257356,0.04349346,104360.0,104350.0,1.32306333]
[1762726257556,0.04349346,104360.0,104350.0,1.08350333]
[1762726258061,0.04349346,104360.0,104350.0,1.41301316]
[1762726258760,0.04349346,104360.0,104350.0,1.32306333]
[1762726259155,0.03776,104370.0,104360.0,0.0958443]
[1762726259356,0.03776,104370.0,104360.0,0.54659413]
[1762726259861,0.09469,104370.0,104360.0,0.54659413]
[1762726260468,0.09569,104370.0,104360.0,0.55359413]
[1762726260765,0.09669,104370.0,104360.0,0.55959413]
[1762726261058,0.09888803,104370.0,104360.0,0.55959413]
[1762726261259,0.14843,104340.0,104310.0,0.3608]
[1762726261457,0.14843,104310.0,104300.0,0.12020363]
[1762726261660,0.87222803,104310.0,104300.0,0.00479363]
[1762726263061,0.87422803,104310.0,104300.0,0.01179363]
[1762726263255,0.97011823,104310.0,104300.0,0.01179363]
[1762726264862,0.96911823,104310.0,104300.0,0.00979363]
[1762726265057,0.97011823,104310.0,104300.0,0.00979363]
[1762726267556,0.97011823,104310.0,104300.0,0.00904003]
[1762726268163,0.87422803,104310.0,104300.0,0.85241279]
[1762726268366,0.7236,104310.0,104300.0,1.11805279]
[1762726268571,0.72579803,104310.0,104300.0,1.11805279]
[1762726269963,0.72479803,104310.0,104300.0,1.11505279]
[1762726270163,0.72579803,104310.0,104300.0,1.11905279]
[1762726270768,0.72479803,104310.0,104300.0,0.88337279]
[1762726270971,0.72579803,104310.0,104300.0,0.88337279]
[1762726271474,0.36499803,104310.0,104300.0,1.12305279]
[1762726271970,0.3628,104310.0,104300.0,0.88337279]
[1762726272173,0.31208,104340.0,104330.0,0.11541]
[1762726272365,0.31208,104340.0,104330.0,0.25103836]
[1762726272366,0.31427803,104340.0,104330.0,0.25103836]
[1762726272566,0.31427803,104340.0,104330.0,0.28936836]
[1762726273073,0.31427803,104340.0,104330.0,0.38524006]
[1762726273969,0.31527803,104340.0,104330.0,0.38724006]
[1762726275274,0.31527803,104340.0,104330.0,0.38824006]
[1762726275976,0.11577803,104340.0,104330.0,0.38824006]
[1762726276167,0.00319803,104340.0,104330.0,0.74904006]
[1762726276769,0.001,104340.0,104330.0,0.74904006]
[1762726279680,0.001,104340.0,104330.0,0.77995006]
[1762726283380,0.001,104340.0,104330.0,0.6443217]
[1762726283584,0.001,104340.0,104330.0,0.77995006]
[1762726285886,0.00014346,104350.0,104340.0,0.2593925]
[1762726286077,0.00014346,104350.0,104340.0,0.6585225]
[1762726287077,0.00114346,104350.0,104340.0,0.6595225]
[1762726287286,0.00314346,104350.0,104340.0,0.6595225]
[1762726289684,0.00314346,104350.0,104340.0,0.79515086]
[1762726292882,0.15557,104370.0,104360.0,0.1224]
[1762726293085,0.15776803,104370.0,104360.0,0.858929]
[1762726294287,0.12480803,104370.0,104360.0,0.900399]
[1762726294488,0.12880803,104370.0,104360.0,0.901399]
[1762726295085,0.13380803,104370.0,104360.0,0.902399]
[1762726295789,0.12980803,104370.0,104360.0,0.904399]
[1762726296389,0.12580803,104370.0,104360.0,0.904399]
[1762726297888,0.12361,104370.0,104360.0,0.942729]
[1762726298293,0.001,104370.0,104360.0,0.942729]
[1762726298494,0.001,104370.0,104360.0,1.303529]
[1762726298891,0.12270562,104380.0,104370.0,0.2426649]
[1762726299198,0.12270562,104380.0,104370.0,0.6417949]
[1762726299898,0.12370562,104380.0,104370.0,0.6427949]
[1762726300097,0.12470562,104380.0,104370.0,0.6427949]
[1762726300988,0.12370562,104380.0,104370.0,0.6427949]
[1762726301194,0.12370562,104380.0,104370.0,0.6447949]
[1762726301399,0.12370562,104380.0,104370.0,0.6467949]
[1762726301794,0.00109562,104380.0,104370.0,0.6467949]
[1762726302095,0.12711,104390.0,104380.0,0.2491357]
[1762726302298,0.12930803,104390.0,104380.0,0.42309406]
[1762726303200,0.12930803,104390.0,104380.0,0.42409406]
[1762726304303,0.13030803,104390.0,104380.0,0.42709406]
[1762726304696,0.13030803,104390.0,104380.0,0.78789406]
[1762726305497,0.13030803,104390.0,104380.0,0.9321506]
[1762726309198,0.0055,104390.0,104380.0,0.9321506]
[1762726309404,0.06593,104390.0,104380.0,1.1746506]
[1762726309706,0.122,104400.0,104390.0,0.2492166]
[1762726309898,0.122,104400.0,104390.0,0.43180314]
[1762726310500,0.12419803,104400.0,104390.0,0.43180314]
[1762726310801,0.12419803,104400.0,104390.0,0.43280314]
[1762726311002,0.12519803,104400.0,104390.0,0.43280314]
[1762726312407,0.12619803,104400.0,104390.0,0.79360314]
[1762726313100,0.12619803,104400.0,104390.0,0.75527314]
[1762726313406,0.12619803,104400.0,104390.0,0.79360314]
[1762726321523,0.06735,104420.0,104410.0,0.2357882]
[1762726321721,0.0045,104420.0,104410.0,0.41837474]
[1762726322115,0.0045,104420.0,104410.0,0.77917474]
[1762726322322,0.17160245,104440.0,104430.0,0.2174999]
[1762726322621,0.53460048,104440.0,104430.0,0.40008644]
[1762726322821,0.53460048,104440.0,104430.0,0.36175644]
[1762726323720,0.17480048,104440.0,104430.0,0.36375644]
[1762726324121,0.17480048,104440.0,104430.0,0.43643644]
[1762726324517,0.13961048,104440.0,104430.0,0.43643644]
[1762726324918,0.13961048,104440.0,104430.0,0.52609667]
[1762726326925,0.13961048,104440.0,104430.0,0.6085812]
[1762726329128,0.13961048,104440.0,104430.0,0.9693812]
[1762726329720,0.01384048,104440.0,104430.0,0.9693812]
[1762726331525,0.07669048,104440.0,104430.0,0.9693812]
[1762726332829,0.07449245,104440.0,104430.0,0.9693812]
[1762726336634,0.07449245,104440.0,104430.0,0.6085812]
[1762726337633,0.07449245,104440.0,104430.0,0.9693812]
[1762726338236,0.07449245,104440.0,104430.0,0.6085812]
[1762726338735,0.07669048,104440.0,104430.0,0.6085812]
[1762726339836,0.13961048,104440.0,104430.0,0.6085812]
[1762726340340,0.17460048,104440.0,104430.0,0.30630654]
[1762726340631,0.17460048,104440.0,104420.0,0.39529346]
[1762726340632,0.16076,104430.0,104420.0,0.00014346]
[1762726340831,0.60983041,104430.0,104420.0,0.00014346]
[1762726341438,0.60983041,104430.0,104420.0,3.46e-06]
[1762726341639,0.16076,104410.0,104400.0,0.20779238]
[1762726341828,0.52375803,104410.0,104400.0,0.24612238]
[1762726342938,0.52375803,104410.0,104400.0,0.34192978]
[1762726343736,0.52375803,104410.0,104400.0,0.34292978]
[1762726343930,0.52475803,104410.0,104400.0,0.34492978]
[1762726344743,0.52475803,104410.0,104400.0,0.003]
[1762726344940,0.88555803,104410.0,104400.0,0.003]
[1762726347839,0.88555803,104410.0,104400.0,0.08907238]
[1762726348028,0.97163041,104410.0,104400.0,0.003]
[1762726348730,0.88555803,104410.0,104400.0,0.003]
[1762726349432,0.88555803,104410.0,104400.0,0.14081389]
[1762726352141,0.88555803,104410.0,104400.0,0.22688627]
[1762726352640,0.88555803,104410.0,104400.0,0.08907238]
[1762726358144,0.88555803,104410.0,104400.0,0.22688627]
[1762726363951,0.88555803,104410.0,104400.0,0.28549627]
[1762726365254,0.88555803,104410.0,104400.0,0.32382627]
[1762726365556,0.88555803,104410.0,104400.0,0.37625627]
[1762726367548,0.88555803,104410.0,104400.0,0.17914389]
[1762726367851,0.88555803,104410.0,104400.0,0.26521627]
[1762726370251,0.88555803,104410.0,104400.0,0.45220865]
[1762726370453,0.88555803,104410.0,104400.0,0.36613627]
[1762726372560,0.88555803,104410.0,104400.0,0.26521627]
[1762726372952,0.88555803,104410.0,104400.0,0.36613627]
[1762726373150,0.88555803,104410.0,104400.0,0.32780627]
[1762726373355,0.52475803,104410.0,104400.0,0.36613627]
[1762726375255,0.74749391,104410.0,104400.0,0.36613627]
[1762726375758,0.74749391,104410.0,104400.0,0.45220865]
[1762726376255,0.74749391,104410.0,104400.0,0.36613627]
[1762726378559,0.74749391,104410.0,104400.0,0.45220865]
[1762726380162,0.48976803,104410.0,104400.0,0.57887605]
[1762726380550,0.52092803,104410.0,104400.0,0.57887605]
[1762726381061,0.12896803,104410.0,104400.0,0.93967605]
[1762726381356,0.001,104410.0,104400.0,1.17911605]
[1762726381558,0.001,104410.0,104400.0,2.02161605]
[1762726381762,0.13856,104430.0,104420.0,0.2018391]
[1762726381965,0.14075803,104430.0,104420.0,0.28791148]
[1762726382158,0.14075803,104430.0,104420.0,0.31910802]
[1762726382361,0.14075803,104430.0,104420.0,0.34996802]
[1762726382658,0.50155803,104430.0,104420.0,0.34996802]
[1762726382860,0.50355803,104430.0,104420.0,0.35096802]
[1762726383064,0.50355803,104430.0,104420.0,0.25517892]
[1762726383364,0.50355803,104430.0,104420.0,0.35096802]
[1762726383756,0.50555803,104430.0,104420.0,0.35096802]
[1762726384754,0.50555803,104430.0,104420.0,0.4370404]
[1762726384955,0.50555803,104430.0,104420.0,0.3414165]
[1762726386364,0.47056803,104430.0,104420.0,0.3414165]
[1762726387460,0.47056803,104430.0,104420.0,0.47923039]
[1762726387660,0.10976803,104430.0,104420.0,0.47923039]
[1762726388067,0.004,104430.0,104420.0,0.84003039]
[1762726388659,0.06298245,104440.0,104430.0,0.1948399]
[1762726388860,0.11421245,104440.0,104430.0,0.83902119]
[1762726389468,0.11421245,104440.0,104430.0,1.08152119]
[1762726390169,0.11721245,104440.0,104430.0,1.08152119]
[1762726390369,0.11721245,104440.0,104430.0,0.72072119]
[1762726390669,0.11721245,104440.0,104430.0,1.08152119]
[1762726391365,0.41764,104450.0,104440.0,0.1948307]